Cogmind - Beta 15 X1 *** ADVENTURER MODE // 2024.11.06 @ 10:14:14 Player: Judas Result: Self-destructed Performance ------------- Evolutions (3) 1500 Regions Visited (4) 800 Robots Destroyed (53) 265 Value Destroyed (1742) 1742 Prototype IDs (2) 40 Alien Tech Used (0) 0 Bonus (0) 0 TOTAL SCORE: 4347 Bonus ------- None Cogmind --------- Core Integrity 551/700 Matter 6/300 Energy 100/100 System Corruption 3% Temperature Cool (12) Movement Rolling (95) Ox1 Location -7/Factory Parts ------- > --- POWER (1) -------- (None) > --- PROPULSION (4) --- Light Treads Wheel Wheel > --- UTILITY (5) ------ Large Storage Unit Advanced Visual Processing Unit Recoil Stabilizer Kinecellerator > --- WEAPON (3) ------- Enhanced Autogun > --- INVENTORY (15) --- Shock Rifle Small Laser Proton Missile Launcher Missile Launcher Remote Datajack Mining Laser Scythe Peak State ------------ > --- POWER ------------ Light Angular Momentum Engine > --- PROPULSION ------- Wheel Compact Wheel Armored Huge Wheel > --- UTILITY ---------- Small Storage Unit Advanced Visual Processing Unit Improved Light Armor Plating > --- WEAPON ----------- Gauss Cannon Gauss Cannon Gauss Cannon > --- INVENTORY -------- Light Treads Light Treads Small Laser Enhanced Autogun Missile Launcher Remote Datajack Mining Laser Scythe [Rating: 35] Favorites ----------- Power Light Ion Engine Engine Light Ion Engine Propulsion Airjet Treads Light Treads Leg Aluminum Leg Wheel Wheel Hover Unit Airjet Utility Small Storage Unit Device Improved Terrain Scanner Storage Small Storage Unit Processor Advanced Visual Processing Unit Protection Light Armor Plating Weapon Gauss Cannon Energy Gun Medium Laser Ballistic Gun Heavy Assault Rifle Ballistic Cannon Gauss Cannon Build | -11 -10 -9 -8 -7 ------- Run | Yrd Mat Mat Mat Fac Slots Evolved 6 | . . 2 2 2 Power . | . . . . . Propulsion 2 | . . . 2 . Utility 3 | . . 1 . 2 Weapon 1 | . . 1 . . Parts Attached 38 | 1 4 8 7 18 Power 3 | . . . 2 1 Engine 3 | . . . 2 1 Core . | . . . . . Reactor . | . . . . . Propulsion 14 | . 1 3 2 8 Treads 2 | . . . . 2 Leg 2 | . 1 1 . . Wheel 6 | . . . . 6 Hover 4 | . . 2 2 . Flight . | . . . . . Utility 9 | 1 . 1 2 5 Device 5 | 1 . . 1 3 Storage 1 | . . . . 1 Processor 1 | . . . 1 . Hackware . | . . . . . Protection 2 | . . 1 . 1 Artifact . | . . . . . Weapon 12 | . 3 4 1 4 Energy Gun 1 | . 1 . . . Energy Cannon . | . . . . . Ballistic Gun 7 | . 2 4 1 . Ballistic Cannon 4 | . . . . 4 Launcher . | . . . . . Special Weapon . | . . . . . Impact Weapon . | . . . . . Slashing Weapon . | . . . . . Piercing Weapon . | . . . . . Special Melee Weapon . | . . . . . Unidentified Prototypes 2 | . . . 1 1 Parts Lost 10 | . . 1 4 5 Power 1 | . . . 1 . Propulsion 4 | . . . 2 2 Utility 3 | . . 1 1 1 Weapon 2 | . . . . 2 Highest Loss Streak 3 | . . 1 1 3 To Critical Strikes . | . . . . . Average Backups 7 | 6 7 7 7 7 Power . | 1 1 1 . . Propulsion 2 | 4 4 3 2 1 Utility . | . . . . . Weapon 4 | 1 2 3 4 5 Tool/Special . | . . . . . Unused Backups 11 | . 2 . . 9 Power . | . . . . . Propulsion 2 | . 2 . . . Utility . | . . . . . Weapon 7 | . . . . 7 Tool/Special 2 | . . . . 2 Average Slot Usage (%) 78 | . 100 93 82 62 Engine 8 | . 14 11 8 4 Treads 1 | . . . . 2 Leg 6 | . 28 13 . . Wheel 3 | . . . . 8 Hover 8 | . . 8 28 4 Device 7 | . 14 11 5 4 Storage 9 | . 14 11 9 7 Processor 3 | . . . 3 7 Protection 2 | . . 7 . 1 Energy Gun 2 | . 22 . . . Ballistic Gun 15 | . 5 30 27 5 Ballistic Cannon 6 | . . . . 14 Peak Build Rating 35 | 9 9 18 28 35 Average Rating 20 | 7 8 13 23 26 On Entrance 13 | 6 9 9 17 24 Naked Turns . | . . . . . Heaviest Build 53 | 12 13 20 24 53 Greatest Support 44 | 20 20 20 32 44 Greatest Overweight (x) 11 | . . 2 1 11 Average Overweight (x) . | . . . . 1 Largest Inventory Capacity 15 | 8 8 8 8 15 Average Capacity 9 | 8 8 8 8 11 Most Carried 10 | 7 8 8 8 10 Average Carried 7 | 6 7 7 7 7 Final Capacity 15 | 8 8 8 8 15 Final Carried 8 | 7 8 8 8 7 Class Distribution -------------------- 30% | Mutant 20% | Gunner 16% | Skirmisher 16% | Scavenger-Tank 8% | Scavenger-Skirmisher 7% | Tank Dominant Class ---------------- Mutant | -10/Materials Scavenger-Tank | -9/Materials Scavenger-Skirmisher | -8/Materials Gunner | -7/Factory Resources | -11 -10 -9 -8 -7 ----------- Run | Yrd Mat Mat Mat Fac Matter Collected 1471 | 210 10 392 275 584 Remotely . | . . . . . Salvage Created 2136 | 94 86 696 491 769 Parts 104 | 6 3 47 19 29 Haulers Intercepted . | . . . . . Recyclers Shooed 1 | . . . . 1 Parts Field Recycled . | . . . . . Retrieved Matter . | . . . . . Parts Self-Destructed . | . . . . . Prevented . | . . . . . Kills | -11 -10 -9 -8 -7 ------- Run | Yrd Mat Mat Mat Fac Combat Hostiles Destroyed 38 | . 2 16 9 11 Guns 28 | . 2 16 9 1 Cannons 10 | . . . . 10 Classes Destroyed 12 | 2 1 4 1 4 Worker 2 | . . . . 2 Builder 4 | . . . . 4 Tunneler 2 | 1 . . . 1 Recycler 5 | 1 . . . 4 Watcher 2 | . . 2 . . Swarmer 3 | . . 3 . . Grunt 22 | . 2 7 5 8 Brawler 1 | . . . . 1 Duelist 1 | . . 1 . . Sentry 8 | . . 5 3 . Hunter 2 | . . . 1 1 Programmer 1 | . . . . 1 Best Kill Streak 10 | 2 2 4 4 10 Combat Bots Only 4 | . 2 4 4 4 Max Kills in Single Turn 2 | 1 1 1 1 2 Gunslinging . | . . . . . Exploded . | . . . . . Melee . | . . . . . Uniques/NPCs Destroyed . | . . . . . Combat | -11 -10 -9 -8 -7 -------- Run | Yrd Mat Mat Mat Fac Hostile Shots Fired 323 | . 13 63 41 206 Missed 108 | . 3 22 13 70 Damage Taken 1909 | . 96 373 305 1135 Core 276 | . 32 44 51 149 Absorbed by Shields . | . . . . . Ignored by Resistances 573 | . 30 109 88 346 Core Remaining (%) 91 | 100 87 89 90 . Volleys Fired 117 | 2 7 36 26 46 Largest 3 | 2 2 3 3 3 Hottest 120 | 90 90 66 71 120 Shots Fired 313 | 4 14 99 78 118 Gun 219 | 4 14 99 78 24 Cannon 94 | . . . . 94 Launcher . | . . . . . Special . | . . . . . Kinetic 295 | . . 99 78 118 Thermal 18 | 4 14 . . . Explosive . | . . . . . Electromagnetic . | . . . . . Robot Hit Streak 57 | 4 6 19 56 57 Robot Miss Streak 3 | . 1 2 1 3 Penetration Max 1 | . . . . 1 Secondary Targets 3 | . . 2 1 . Max Gunslinging Chain 1 | . . 1 1 . Shots Hit Robots 221 | 4 10 74 60 73 Core Hits 98 | 3 7 33 23 32 Critical Kills . | . . . . . Critical Parts Destroyed . | . . . . . Critical Strikes 13 | . . . . 13 Blast 13 | . . . . 13 Melee Attacks . | . . . . . Impact . | . . . . . Slashing . | . . . . . Piercing . | . . . . . Sneak Attacks . | . . . . . Combat Hostiles . | . . . . . Follow-up Attacks . | . . . . . Damage Inflicted 4059 | 48 114 1053 810 2034 Guns 2346 | 48 114 1038 810 336 Cannons 1665 | . . . . 1665 Explosions . | . . . . . Melee . | . . . . . Ramming 48 | . . 15 . 33 Kinetic 3849 | . . 1038 810 2001 Thermal 162 | 48 114 . . . Explosive . | . . . . . Electromagnetic . | . . . . . Impact . | . . . . . Slashing . | . . . . . Piercing . | . . . . . Highest Corruption 3 | . . 3 . 3 Average Corruption 1 | . . 3 . 1 Corruption Purged . | . . . . . Corruption Blocked . | . . . . . Effects 5 | . . . . 5 Matter Fused 2 | . . . . 2 Heat Flow Errors 1 | . . . . 1 Data Loss (minor) 2 | . . . . 2 Overload Shots . | . . . . . Overflow Damage 33 | . . . . 33 Projectiles 33 | . . . . 33 Explosions . | . . . . . Melee . | . . . . . Knockbacks 16 | . . . . 16 Impact . | . . . . . Kinetic 15 | . . . . 15 Secondary 1 | . . . . 1 Self-Inflicted Damage 22 | . . 7 . 15 Shots . | . . . . . Rammed 5 | . . 1 . 4 Targets Rammed 5 | . . 1 . 4 Kicked . | . . . . . Crushed . | . . . . . Highest Temperature 407 | 60 201 60 123 407 Average Temperature 69 | 30 87 15 43 110 Received Heat Transfer 843 | . 72 144 162 465 Effects 2 | . . . . 2 Short Circuit 2 | . . . . 2 Siege Activations . | . . . . . Martial Activations . | . . . . . Shielding Activations . | . . . . . Robots Disrupted . | . . . . . Combat Hostiles . | . . . . . Robots Corrupted . | . . . . . Combat Hostiles . | . . . . . Parts Fried . | . . . . . Impact Corruptions . | . . . . . Robots Melted . | . . . . . Combat Hostiles . | . . . . . Parts Melted 1 | . 1 . . . Heat Transferred 422 | 124 298 . . . Parts Sabotaged . | . . . . . Parts Stolen . | . . . . . Parts Stripped . | . . . . . Power Chain Reactions . | . . . . . Alert | -11 -10 -9 -8 -7 ------- Run | Yrd Mat Mat Mat Fac Maximum Alert Level 1 | . . 1 1 1 Low Security (%) 75 | 100 100 64 86 69 Level 1 24 | . . 35 13 30 Level 2 . | . . . . . Level 3 . | . . . . . Level 4 . | . . . . . Level 5 . | . . . . . High Security . | . . . . . Max Security . | . . . . . Peak Influence 297 | 10 50 297 210 259 Initial 94 | . . . 94 74 Average 132 | 5 14 146 144 158 Influence Increases 1166 | 10 50 434 256 416 Destroy 0b10 Robot/C 760 | . 40 320 180 220 Destroy 0b10 Robot/NC 75 | 10 . 10 . 55 Destroy Leader 224 | . 10 104 60 50 Disable Machine 36 | . . . . 36 Destroy Structure 56 | . . . 1 55 Lose Combat Pursuer 15 | . . . 15 . Influence Decreases 790 | 10 50 170 160 400 Time Decay 690 | 10 50 160 120 350 Lost Part 100 | . . 10 40 50 Squads Dispatched 7 | . . 3 1 3 Investigation . | . . . . . Extermination 1 | . . . . 1 Reinforcement 5 | . . 3 1 1 Assault . | . . . . . Garrison 1 | . . . . 1 Intercept . | . . . . . Searches Triggered . | . . . . . Construction Impeded 1 | . . . . 1 Haulers Reinforced . | . . . . . Active Scanning Responses . | . . . . . Cargo Convoy Interrupts . | . . . . . Stealth | -11 -10 -9 -8 -7 --------- Run | Yrd Mat Mat Mat Fac Distress Signals 3 | . . 1 2 . Communications Jammed . | . . . . . Distress Signals . | . . . . . Times Spotted 56 | . 4 24 12 16 Peak Tracking Total 6 | . 2 5 6 4 Tactical Retreats 1 | . . . 1 . Traps | -11 -10 -9 -8 -7 ------- Run | Yrd Mat Mat Mat Fac Traps Triggered 6 | . . . . 6 Indirectly . | . . . . . Trap Hack Attempts . | . . . . . Triggered . | . . . . . Disarmed . | . . . . . Reprogrammed . | . . . . . Reused . | . . . . . Traps Extracted . | . . . . . Installed . | . . . . . Triggered . | . . . . . Machines | -11 -10 -9 -8 -7 ---------- Run | Yrd Mat Mat Mat Fac Machines Disabled 4 | . . . . 4 Max in Single Turn 1 | . . . . 1 Machines Repaired . | . . . . . Machines Dismantled . | . . . . . Machines Sabotaged . | . . . . . Overloaded Fab Kills . | . . . . . Hacking | -11 -10 -9 -8 -7 --------- Run | Yrd Mat Mat Mat Fac Machines Accessed 1 | . 1 . . . Terminals 1 | . 1 . . . Fabricators . | . . . . . Repair Stations . | . . . . . Recycling Units . | . . . . . Scanalyzers . | . . . . . Garrison Access . | . . . . . Total Hacks 2 | . 2 . . . Successful . | . . . . . Failed 2 | . 2 . . . Catastrophic . | . . . . . Database Lockouts . | . . . . . Manual 2 | . 2 . . . Terminals 2 | . 2 . . . Fabricators . | . . . . . Repair Stations . | . . . . . Recycling Units . | . . . . . Scanalyzers . | . . . . . Garrison Access . | . . . . . Terminal Hacks . | . . . . . Fabricator Hacks . | . . . . . Repair Station Hacks . | . . . . . Recycling Unit Hacks . | . . . . . Scanalyzer . | . . . . . Garrison Access Hacks . | . . . . . Unauthorized Hacks . | . . . . . Terminals . | . . . . . Fabricators . | . . . . . Repair Stations . | . . . . . Recycling Units . | . . . . . Scanalyzers . | . . . . . Garrison Access . | . . . . . Data Cores Recovered . | . . . . . Used . | . . . . . Hacking Detections 1 | . 1 . . . Full Trace Events . | . . . . . Feedback Events . | . . . . . Feedback Blocked . | . . . . . Robot Schematics Acquired . | . . . . . Robots Built . | . . . . . Authchips . | . . . . . Time . | . . . . . Total Robot Build Rating . | . . . . . Part Schematics Acquired . | . . . . . Parts Built . | . . . . . Authchips . | . . . . . Time . | . . . . . Total Part Build Rating . | . . . . . Parts Repaired . | . . . . . Time . | . . . . . Parts Recycled . | . . . . . Recycled Matter . | . . . . . Retrieved Matter . | . . . . . Retrieved Components . | . . . . . Parts Scanalyzed . | . . . . . Part Schematics Acquired . | . . . . . Parts Damaged . | . . . . . Bothacking | -11 -10 -9 -8 -7 ------------ Run | Yrd Mat Mat Mat Fac Used RIF Installer . | . . . . . Robots Hacked . | . . . . . Non-combat . | . . . . . Combat . | . . . . . Robot Hacks Applied . | . . . . . Relay Couplers Released . | . . . . . Fabnet Peak Effective % . | . . . . . Robots Rewired . | . . . . . Allies Hacked . | . . . . . Hacks Repelled . | . . . . . Allies | -11 -10 -9 -8 -7 -------- Run | Yrd Mat Mat Mat Fac Total Allies . | . . . . . Largest Group . | . . . . . Highest-Rated Group . | . . . . . Highest-Rated Ally . | . . . . . Total Orders . | . . . . . Ally Attacks . | . . . . . Total Damage . | . . . . . Kills . | . . . . . Allies Corrupted . | . . . . . Allies Melted . | . . . . . Intel | -11 -10 -9 -8 -7 ------- Run | Yrd Mat Mat Mat Fac Active Infowar (turns) 1397 | 11 192 363 123 708 Optics 792 | . . . 84 708 Terrain 605 | 11 192 363 39 . Seismic 2 | . . . 2 . Robot Analysis Total . | . . . . . Derelict Logs Recovered . | . . . . . Drone Launches . | . . . . . Drone Recoveries . | . . . . . Exploration | -11 -10 -9 -8 -7 ------------- Run | Yrd Mat Mat Mat Fac Turns Passed 1538 | 31 192 363 244 708 Spaces Moved 995 | 19 136 206 241 393 Core 4 | . . . . 4 Treads 38 | . . . . 38 Legs 265 | 19 136 110 . . Wheels 245 | . . . . 245 Hover 443 | . . 96 241 106 Flight . | . . . . . Fastest Speed 48 | 120 120 56 48 80 Average Speed 107 | 120 120 112 58 131 Slowest Speed 600 | 120 120 190 116 600 Overloaded Moves . | . . . . . Propulsion Burnouts . | . . . . . Robots Hopped . | . . . . . Cave-ins Triggered . | . . . . . Exploration Rate (%) 18 | 3 23 30 29 9 Regions Visited 4 Branch Regions . Pre-discovered Areas . | . . . . . Known Exits Taken . | . . . . . Unknown Exits Taken 4 | 1 1 1 1 . Scrap Searched . | . . . . . Spaces Dug . | . . . . . Terrain Destroyed 58 | . . . . 58 Melee . | . . . . . Projectile 22 | . . . . 22 AOE 36 | . . . . 36 Terrain Rammed . | . . . . . Walls Destroyed . | . . . . . Machines Disabled . | . . . . . Actions | -11 -10 -9 -8 -7 --------- Run | Yrd Mat Mat Mat Fac Total 1230 | 22 151 261 293 503 Wait 30 | . . 1 14 15 Move 991 | 18 135 205 240 393 Hop . | . . . . . Pick Up 14 | 1 1 2 3 7 Fast Attach 29 | 1 3 4 4 17 Attach 8 | . . . 3 5 Detach . | . . . . . Swap 7 | . 1 4 . 2 Drop 29 | . 4 8 3 14 Fire 117 | 2 7 36 26 46 Melee . | . . . . . Ram 5 | . . 1 . 4 Kick . | . . . . . Crush . | . . . . . Escape Stasis . | . . . . . Rewire . | . . . . . Trap . | . . . . . Miscellaneous . | . . . . . Route ------- -11/Scrapyard -10/Materials -9/Materials -8/Materials -7/Factory (discovered 2 exits: [*Fac] / [*Low]) History --------- Turn | Location | Event 8 | -11/Scrapyard | Discovered new exit (range 3) 32 | -11/Scrapyard | Entered Materials 161 | -10/Materials | Discovered new exit (range 16) 224 | -10/Materials | Entered another Materials area 224 | -9/Materials | Evolved 2 slots: Utility x1, Weapon x1 581 | -9/Materials | Discovered new exit (range 13) 587 | -9/Materials | Entered another Materials area 587 | -8/Materials | Evolved 2 slots: Propulsion x2 815 | -8/Materials | Discovered new exit (range 14) 831 | -8/Materials | Entered Factory 831 | -7/Factory | Evolved 2 slots: Utility x2 976 | -7/Factory | Garrison activated, responded to threat 1391 | -7/Factory | Discovered new exit (range 4) 1410 | -7/Factory | Discovered new exit (range 19) 1532 | -7/Factory | Lost 3 parts (1n2w) 1539 | -7/Factory | Self-destructed Last Messages --------------- 01442_ System corrupted: Component data lost. 01453_ Acquired Proton Missile Launcher. 01467_ System corrupted: Heat flow error (+248). 01467_ U-05 Engineer builds a Wall. 01472_ U-05 Engineer destroyed. 01472_ Acquired 19 matter. 01474_ Acquired Wheel. 01475_ Gauss Cannon destroyed. 01476_ Slug penetrates Y-54 Guardian. 01478_ Gauss Cannon destroyed. 01489_ Slammed into Y-54 Guardian. 01491_ Acquired 2 matter. 01495_ Slammed into Y-54 Guardian. 01501_ Wheel destroyed. 01501_ R-06 Scavenger collects Terrain Scanner. 01507_ Acquired 4 matter. 01511_ Triggered Proton Bomb Trap. 01511_ A bubble of electromagnetic force engulfs the area. 01516_ System corrupted: Matter fused (-8). 01518_ U-05 Engineer lays Concrete. Map ----- +----------------------------------------------------+ | ?????????????????????????????????????????????????? | | ?????????????????????????????????????????????????? | | ?????????????????????????????????????????????????? | | ?????????????????????????????????????????????????? | | ?????????????????????????????????????????????????? | | ?????????????????????????????????????????????????? | | ?????????????????????????????????????????????????? | | ?????????????????????????????????????????????????? | | ?????????????????????????????????????????????????? | | ????????????????????????+????????????????????????? | | ???????????????????????? ????????????????????????? | | ???????????????????????? ????????????????????????? | | ???????????????????????? ????????????????????????? | | ???????????????????????? ????????????????????????? | | ???????????????????????# #???????????????????????? | | ??????????????????????? ???????????????????????? | | ??????????????????????? ???????????????????????? | | ??????????????????????? ???????????????????????? | | ???????????????????????# #???????????????????????? | | ???????????????????????# #???????????????????????? | | ???????????????????????# #???????????????????????? | | ???????????????????????# #?##########????????????? | | ???????????????????##### ### #????????????? | | ???????????????????# #! """ #????????????? | | ??????############## # """"" #????????????? | | ????? @ # """"" #????????????? | | ????? + #????????????? | | ????? # !// #????????????? | | ???????############# # !/! / #????????????? | | ???????????????????# # !/! #????????????? | | ???????????????????### ### ! #????????????? | | ?????????????????????# ############????????????? | | ?????????????????????+ + #??????????????? | | ?????????????????????# # #??????????????? | | ?????????????????????# Y# " #??????????????? | | ?????????????????????# m#? " #?????????###### | | ?????????????????????#^ #? "" #?????????# | | ?????????????????????# # ? " #?????????# | | ?????????????????????# # ? " #?????????#= | | ?????????????????????# # ??? #???####### | | ????????????????????### #????? #???# ##+### | | ????????????????????# # ############## ! | | | ????????????????????# # < = | | ???????????????????#### ### | | ????????????######## #?# ##+### | | ??? %%< #?#######???? | | ??????????# ######## ### ##########?????????? | | ???????????????????## ##?# #????????????????? """ | | ????????????????????# #??# #????????????????# """ | | ????????? ????#######+####+#????????????????# """ | +----------------------------------------------------+ Best States ------------- Heat Dissipation 34 Energy Generation 18 Energy Capacity 250 Matter Stores 300 Matter Capacity 300 Sight Range 20 Terrain Scan Range 16 Terrain Scan Density 10 Armor Coverage 150 Resistance: KI 20 Resistance: TH 20 Resistance: EX 20 Resistance: EM 20 Resistance: I 20 Resistance: S 20 Resistance: P 20 Evasion (%) 55 Recoil Reduction 5 Kinecelleration 30 Offensive Hacking 10 Item Schematics ----------------- None Robot Schematics ------------------ None Fabricated ------------ Nothing Repaired ---------- Nothing Alien Tech Used ----------------- None Achievements -------------- None Challenges ------------ None Game ------ Seed PoweredOvertunedProtection Manual? 0 Play Time 00:23:08 Cumulative 109.8 hours Start 2024.11.06 @ 09:52:51 End 2024.11.06 @ 10:14:14 Sessions 1 Manual Loads 0 Difficulty Adventurer Special Mode None Game No. 194 Rogue 187 Adventurer 2 Explorer 5 Win Type - Total 0 Types 0/0/0/0/0/0/0/0/0 Lore% 24 Gallery% 48 Achievement% 43 Wizard Run 0 Options --------- Layout 0 ASCII 0 Keyboard 0 Movement Mouse Keybinds 0 Fullscreen 1 Font 18/SmallcapsGlow Map View 76x50 Zoom Use 0% Tactical HUD 1 Map Filters NONE Filters NONE Steam 1 RUN: c5c46304-4659-4a4b-ac41-f437bea96d74